Cogmind - Beta 13 @@@ ROGUE MODE // 2024.04.21 @ 20:04:33 Player: Fazzonamite Result: Self-destructed Performance ------------- Evolutions (1) 500 Regions Visited (2) 400 Robots Destroyed (26) 130 Value Destroyed (753) 753 Prototype IDs (0) 0 Alien Tech Used (0) 0 Bonus (32) 32 TOTAL SCORE: 1815 Bonus ------- High Alert Combat Kills 32 Cogmind --------- Core Integrity 206/400 Matter 290/300 Energy 32/125 System Corruption 0% Temperature Cool (85) Movement Core (300) Ox5 Location -9/Materials Parts ------- > --- POWER (1) -------- Light Ion Engine > --- PROPULSION (3) --- (None) > --- UTILITY (3) ------ Small Storage Unit Structural Scanner Visual Processing Unit > --- WEAPON (2) ------- Light EM Pulse Cannon Particle Cannon > --- INVENTORY (8) ---- Wheel Wheel VTOL Module Signal Interpreter Hacking Suite Particle Cannon Rocket Launcher Datajack Peak State ------------ > --- POWER ------------ Ion Engine > --- PROPULSION ------- Aluminum Leg Aluminum Leg Aluminum Leg > --- UTILITY ---------- Small Storage Unit Structural Scanner Visual Processing Unit > --- WEAPON ----------- EMP Blaster Rocket Launcher > --- INVENTORY -------- Wheel Wheel VTOL Module Signal Interpreter Hacking Suite Rocket Launcher Datajack [Rating: 13] Favorites ----------- Power Ion Engine Engine Ion Engine Propulsion Aluminum Leg Leg Aluminum Leg Wheel Compact Wheel Utility Small Storage Unit Device Structural Scanner Storage Small Storage Unit Processor Visual Processing Unit Weapon Particle Cannon Energy Gun Small Laser Energy Cannon Particle Cannon Ballistic Gun Light Assault Rifle Launcher EMP Blaster Build | -11 -10 -9 ------- Run | Yrd Mat Mat Slots Evolved 2 | . . 2 Power . | . . . Propulsion 1 | . . 1 Utility 1 | . . 1 Weapon . | . . . Parts Attached 21 | 3 10 8 Power 3 | . 2 1 Engine 3 | . 2 1 Core . | . . . Reactor . | . . . Propulsion 6 | 2 3 1 Treads . | . . . Leg 4 | . 3 1 Wheel 2 | 2 . . Hover . | . . . Flight . | . . . Utility 3 | 1 1 1 Device 1 | . . 1 Storage 1 | 1 . . Processor 1 | . 1 . Hackware . | . . . Protection . | . . . Artifact . | . . . Weapon 9 | . 4 5 Energy Gun 3 | . 3 . Energy Cannon 3 | . . 3 Ballistic Gun 1 | . 1 . Ballistic Cannon . | . . . Launcher 2 | . . 2 Special Weapon . | . . . Impact Weapon . | . . . Slashing Weapon . | . . . Piercing Weapon . | . . . Special Melee Weapon . | . . . Unidentified Prototypes . | . . . Parts Lost 7 | . 3 4 Power 2 | . 1 1 Propulsion 4 | . 1 3 Utility . | . . . Weapon 1 | . 1 . Highest Loss Streak 3 | . 3 3 To Critical Strikes . | . . . Average Slot Usage (%) 86 | . 84 87 Engine 11 | . 12 10 Leg 20 | . 18 22 Wheel 3 | . 8 . Device 5 | . . 10 Storage 12 | . 14 11 Processor 8 | . 5 11 Energy Gun 5 | . 11 . Energy Cannon 6 | . . 11 Ballistic Gun 5 | . 12 . Launcher 4 | . . 8 Naked Turns . | . . . Heaviest Build 19 | 5 12 19 Greatest Support 32 | 32 32 30 Greatest Overweight (x) 5 | . . 5 Average Overweight (x) . | . . . Largest Inventory Capacity 8 | 8 8 8 Average Capacity 7 | 6 8 8 Most Carried 8 | 7 8 8 Average Carried 6 | 4 6 7 Final Capacity 8 | 8 8 8 Final Carried 8 | 7 8 8 Class Distribution -------------------- 96% | Mutant 3% | Scavenger-Mutant Dominant Class ---------------- Mutant | -10/Materials Mutant | -9/Materials Resources | -11 -10 -9 ----------- Run | Yrd Mat Mat Matter Collected 495 | 227 114 154 Remotely . | . . . Salvage Created 901 | . 368 533 Parts 60 | . 27 33 Haulers Intercepted . | . . . Recyclers Shooed 1 | . 1 . Parts Field Recycled . | . . . Retrieved Matter . | . . . Parts Self-Destructed . | . . . Prevented . | . . . Kills | -11 -10 -9 ------- Run | Yrd Mat Mat Combat Hostiles Destroyed 21 | . 8 13 Guns 7 | . 7 . Cannons 8 | . . 8 AOE 5 | . 1 4 Classes Destroyed 9 | . 4 5 Builder 1 | . 1 . Recycler 1 | . . 1 Mechanic 1 | . . 1 Operator 1 | . 1 . Watcher 1 | . 1 . Swarmer 4 | . . 4 Grunt 15 | . 8 7 Brawler 1 | . . 1 Sentry 1 | . . 1 Best Kill Streak 5 | . 4 5 Combat Bots Only 4 | . 3 4 Max Kills in Single Turn 2 | . 1 2 Gunslinging . | . . . Exploded 2 | . 1 2 Melee . | . . . Uniques/NPCs Destroyed . | . . . Combat | -11 -10 -9 -------- Run | Yrd Mat Mat Hostile Shots Fired 122 | . 42 80 Missed 26 | . 9 17 Damage Taken 1153 | . 474 679 Core 327 | . 133 194 Absorbed by Shields . | . . . Core Remaining (%) 73 | 100 46 . Volleys Fired 79 | . 36 43 Largest 2 | . 2 2 Hottest 136 | . 60 136 Shots Fired 128 | . 67 61 Gun 67 | . 67 . Cannon 47 | . . 47 Launcher 14 | . . 14 Special . | . . . Kinetic 36 | . 36 . Thermal 59 | . 22 37 Explosive 4 | . . 4 Electromagnetic 29 | . 9 20 Robot Hit Streak 13 | . 13 13 Robot Miss Streak 4 | . 2 4 Penetration Max . | . . . Secondary Targets 1 | . 1 . Max Gunslinging Chain 1 | . 1 . Shots Hit Robots 85 | . 53 32 Core Hits 43 | . 26 17 Critical Kills . | . . . Critical Parts Destroyed . | . . . Critical Strikes . | . . . Melee Attacks . | . . . Impact . | . . . Slashing . | . . . Piercing . | . . . Sneak Attacks . | . . . Combat Hostiles . | . . . Follow-up Attacks . | . . . Damage Inflicted 1538 | . 607 931 Guns 568 | . 568 . Cannons 447 | . . 447 Explosions 523 | . 39 484 Melee . | . . . Ramming . | . . . Kinetic 235 | . 235 . Thermal 758 | . 251 507 Explosive 82 | . . 82 Electromagnetic 463 | . 121 342 Impact . | . . . Slashing . | . . . Piercing . | . . . Highest Corruption . | . . . Average Corruption . | . . . Corruption Purged . | . . . Corruption Blocked . | . . . Overload Shots . | . . . Overflow Damage 1 | . . 1 Projectiles 1 | . . 1 Explosions . | . . . Melee . | . . . Knockbacks . | . . . Impact . | . . . Kinetic . | . . . Secondary . | . . . Self-Inflicted Damage 143 | . 40 103 Shots 7 | . 1 6 Rammed . | . . . Targets Rammed . | . . . Kicked . | . . . Crushed . | . . . Highest Temperature 541 | . 130 541 Average Temperature 131 | . 51 191 Received Heat Transfer 330 | . 243 87 Effects 14 | . . 14 Shutdowns 3 | . . 3 Energy Bleed 2 | . . 2 Interference 5 | . . 5 Short Circuit 1 | . . 1 Damage (minor) 3 | . . 3 Siege Activations . | . . . Robots Corrupted 1 | . . 1 Combat Hostiles 1 | . . 1 Parts Fried 2 | . . 2 Impact Corruptions . | . . . Robots Melted . | . . . Combat Hostiles . | . . . Parts Melted . | . . . Heat Transferred 1391 | . 525 866 Parts Sabotaged . | . . . Parts Stolen . | . . . Parts Stripped . | . . . Power Chain Reactions 3 | . 1 2 Alert | -11 -10 -9 ------- Run | Yrd Mat Mat Peak Influence 617 | . 247 617 Initial 104 | . . 104 Average 217 | . 125 326 Maximum Alert Level 2 | . 1 2 Low Security (%) 54 | 100 81 24 Level 1 26 | . 18 38 Level 2 18 | . . 37 Level 3 . | . . . Level 4 . | . . . Level 5 . | . . . High Security . | . . . Max Security . | . . . Squads Dispatched 4 | . 3 1 Investigation 1 | . 1 . Extermination . | . . . Reinforcement 3 | . 2 1 Assault . | . . . Garrison . | . . . Intercept . | . . . Searches Triggered . | . . . Construction Impeded 1 | . . 1 Haulers Reinforced . | . . . Active Scanning Responses . | . . . Cargo Convoy Interrupts . | . . . Stealth | -11 -10 -9 --------- Run | Yrd Mat Mat Distress Signals 2 | . 1 1 Communications Jammed . | . . . Distress Signals . | . . . Times Spotted 43 | . 17 26 Peak Tracking Total 6 | . 6 4 Tactical Retreats 3 | . . 3 Traps | -11 -10 -9 ------- Run | Yrd Mat Mat Traps Triggered 1 | . 1 . Indirectly . | . . . Trap Hack Attempts . | . . . Triggered . | . . . Disarmed . | . . . Reprogrammed . | . . . Reused . | . . . Traps Extracted . | . . . Installed . | . . . Triggered . | . . . Machines | -11 -10 -9 ---------- Run | Yrd Mat Mat Machines Disabled 4 | . . 4 Max in Single Turn 1 | . . 1 Machines Repaired . | . . . Machines Dismantled . | . . . Machines Sabotaged . | . . . Overloaded Fab Kills . | . . . Hacking | -11 -10 -9 --------- Run | Yrd Mat Mat Machines Accessed 2 | . 1 1 Terminals 2 | . 1 1 Fabricators . | . . . Repair Stations . | . . . Recycling Units . | . . . Scanalyzers . | . . . Garrison Access . | . . . Total Hacks 2 | . 1 1 Successful 1 | . . 1 Failed 1 | . 1 . Catastrophic 1 | . 1 . Database Lockouts . | . . . Manual . | . . . Terminals 2 | . 1 1 Fabricators . | . . . Repair Stations . | . . . Recycling Units . | . . . Scanalyzers . | . . . Garrison Access . | . . . Terminal Hacks 1 | . . 1 Locate Traps 1 | . . 1 Fabricator Hacks . | . . . Repair Station Hacks . | . . . Recycling Unit Hacks . | . . . Scanalyzer . | . . . Garrison Access Hacks . | . . . Unauthorized Hacks . | . . . Terminals . | . . . Fabricators . | . . . Repair Stations . | . . . Recycling Units . | . . . Scanalyzers . | . . . Garrison Access . | . . . Data Cores Recovered . | . . . Used . | . . . Hacking Detections 1 | . 1 . Full Trace Events . | . . . Feedback Events . | . . . Feedback Blocked . | . . . Robot Schematics Acquired . | . . . Robots Built . | . . . Authchips . | . . . Time . | . . . Total Robot Build Rating . | . . . Part Schematics Acquired . | . . . Parts Built . | . . . Authchips . | . . . Time . | . . . Total Part Build Rating . | . . . Parts Repaired . | . . . Time . | . . . Parts Recycled . | . . . Recycled Matter . | . . . Retrieved Matter . | . . . Retrieved Components . | . . . Parts Scanalyzed . | . . . Part Schematics Acquired . | . . . Parts Damaged . | . . . Bothacking | -11 -10 -9 ------------ Run | Yrd Mat Mat Used RIF Installer . | . . . Robots Hacked . | . . . Non-combat . | . . . Combat . | . . . Robot Hacks Applied . | . . . Relay Couplers Released . | . . . Fabnet Peak Effective % . | . . . Robots Rewired . | . . . Allies Hacked . | . . . Hacks Repelled . | . . . Allies | -11 -10 -9 -------- Run | Yrd Mat Mat Total Allies . | . . . Largest Group . | . . . Highest-Rated Group . | . . . Highest-Rated Ally . | . . . Total Orders . | . . . Ally Attacks . | . . . Total Damage . | . . . Kills . | . . . Allies Corrupted . | . . . Allies Melted . | . . . Intel | -11 -10 -9 ------- Run | Yrd Mat Mat Robot Analysis Total . | . . . Derelict Logs Recovered . | . . . Drone Launches . | . . . Drone Recoveries . | . . . Exploration | -11 -10 -9 ------------- Run | Yrd Mat Mat Turns Passed 742 | 55 312 375 Spaces Moved 355 | 46 141 168 Core 10 | 6 . 4 Treads . | . . . Legs 272 | . 108 164 Wheels 73 | 40 33 . Hover . | . . . Flight . | . . . Fastest Speed 50 | 50 100 120 Average Speed 116 | 93 115 123 Slowest Speed 300 | 100 120 300 Overloaded Moves . | . . . Propulsion Burnouts . | . . . Robots Hopped . | . . . Cave-ins Triggered . | . . . Exploration Rate (%) 16 | 4 25 20 Regions Visited 2 Branch Regions . Pre-discovered Areas . | . . . Known Exits Taken . | . . . Unknown Exits Taken 2 | 1 1 . Scrap Searched . | . . . Spaces Dug . | . . . Terrain Destroyed 21 | . 5 16 Melee . | . . . Projectile . | . . . AOE 21 | . 5 16 Terrain Rammed . | . . . Walls Destroyed . | . . . Machines Disabled . | . . . Actions | -11 -10 -9 --------- Run | Yrd Mat Mat Total 564 | 58 231 275 Wait 77 | . 34 43 Move 353 | 45 140 168 Hop . | . . . Pick Up 25 | 10 8 7 Fast Attach 3 | . 1 2 Attach 14 | 3 7 4 Detach . | . . . Swap 4 | . 2 2 Drop 9 | . 3 6 Fire 79 | . 36 43 Melee . | . . . Ram . | . . . Kick . | . . . Crush . | . . . Escape Stasis . | . . . Rewire . | . . . Trap . | . . . Miscellaneous . | . . . Route ------- -11/Scrapyard -10/Materials -9/Materials (discovered 1 exit: [*Min]) History --------- Turn | Location | Event 11 | -11/Scrapyard | Discovered new exit (range 15) 56 | -11/Scrapyard | Entered Materials 172 | -10/Materials | Lost 3 parts (1p1n1w) 301 | -10/Materials | Build established: Mutant 310 | -10/Materials | Core integrity fell below 50% 347 | -10/Materials | Discovered new exit (range 4) 368 | -10/Materials | Entered another Materials area 368 | -9/Materials | Evolved 2 slots: Propulsion x1, Utility x1 536 | -9/Materials | Discovered new exit (range 9) 732 | -9/Materials | Lost 3 parts (1p2n) 743 | -9/Materials | Self-destructed Last Messages --------------- station. 00722_ Backup Power I tumbles out of repair station. 00722_ Backup Laser I tumbles out of repair station. 00722_ R-06 Scavenger destroyed. 00726_ Acquired 5 matter. 00731_ Acquired Lgt. Ion Engine. 00732_ K-01 Serf collects debris. 00734_ S-10 Pest destroyed. 00735_ R-06 Scavenger collects Com. Wheel. 00736_ Destroyed Flight Unit. 00736_ U-05 Engineer lays Concrete. 00739_ R-06 Scavenger collects Sml. Storage Unit. 00740_ U-05 Engineer lays Concrete. 00740_ K-01 Serf collects debris. 00741_ U-05 Engineer lays Concrete. 00741_ U-05 Engineer builds a Wall. 00742_ U-05 Engineer lays Concrete. Map ----- +----------------------------------------------------+ | ??????? # ##??????????????????? | | ??????? ##???????????????????? | | ????????#######+####### # #???????????????????? | | ????????## #### ####???????????????????? | | ?????????????????? #""" ###???????????????????? | | ?????????????????? #" ##????????????????????? | | ?????????????????? #"| ##????????????????????? | | ?????????????????? #"" < ##????????????????????? | | ?????????????????? #"! ##????????????????????? | | ?????????????????? #" ##????????????????????? | | ????????????????? #""" ########??????????????? | | ???????????############ #########??????????????? | | ???????????########T### # ??????????????? | | ??????????? # + ?????????????????? | | ??????????? # # ?????????????????????? | | ??????????? # % " # "????????????????????? | | ??????????? ## ### "" # ""???????????????????? | | ??????????? ## ### " r# ?????????????????? | | ????????? ## ### """ ########## ???????????? | | ?????????#####/### "" %k ############???????????? | | ?????????## # """% # ##???????????? | | ?????????## # """ # ##???????????? | | ?????????##""" # """ u# ##???????????? | | ?????????##""" + " %#u*[ """ ##???????????? | | ?????????##""" # s sru% "" """ ##???????????? | | ?????????## # *@=%"R """ ##???????????? | | ?????????##########+#####%# """ ##???????????? | | ?????????###### #*# + ??????????? | | ???????????????? ?? !? #s#############??????????? | | ???????????????/ ??? # #############??????????? | | ??????????? / ????? # ##?????????????????????? | | ???????????#### ????? + ?????????????????????? | | ???????????"""# ?????? # ??????????????????????? | | ?????????????????????? # ??????????????????????? | | ?????????????????????? + ?????????????????????? | | ??????????????????????######?????????????????????? | | ??????????????????????### ?????????????????????? | | ?????????????????????????????????????????????????? | | ?????????????????????????????????????????????????? | | ?????????????????????????????????????????????????? | | ?????????????????????????????????????????????????? | | ?????????????????????????????????????????????????? | | ?????????????????????????????????????????????????? | | ?????????????????????????????????????????????????? | | ?????????????????????????????????????????????????? | | ?????????????????????????????????????????????????? | | ?????????????????????????????????????????????????? | | ?????????????????????????????????????????????????? | | ?????????????????????????????????????????????????? | | ?????????????????????????????????????????????????? | +----------------------------------------------------+ Best States ------------- Heat Dissipation 28 Energy Generation 10 Energy Capacity 250 Matter Stores 300 Matter Capacity 300 Sight Range 18 Terrain Scan Density 10 Evasion (%) 55 Item Schematics ----------------- None Robot Schematics ------------------ None Fabricated ------------ Nothing Alien Tech Used ----------------- None Achievements -------------- None Challenges ------------ None Game ------ Seed CouplerGlidesysTriangulator Manual? 0 Play Time 00:21:20 Cumulative 34.9 hours Start 2024.04.21 @ 19:42:24 End 2024.04.21 @ 20:04:33 Sessions 1 Manual Loads 0 Difficulty Rogue Special Mode None Game No. 37 Rogue 37 Adventurer 0 Explorer 0 Win Type - Total 0 Types 0/0/0/0/0/0/0/0/0 Lore% 22 Gallery% 30 Achievement% 23 Wizard Run 0 Options --------- Layout 2 ASCII 0 Keyboard 0 Movement Mouse Keybinds 0 Fullscreen 1 Font 48/Smallcaps Map View 50x44 Zoom Use 0% Tactical HUD 1 Map Filters NONE Filters NONE Steam 1 RUN: 73e521fc-15e4-4c5e-bcc5-1c4d07c2e5c8